fUSD/lending_fUSD_20240530
["ID","MTS","AMOUNT","RATE_DAILY","PERIOD"]
[328239998,1717088970727,2100.0,0.00043561,30]
[328239999,1717088972065,1300.0,0.00043287,30]
[328240000,1717088972470,900.0,0.00044109,30]
[328240001,1717088973910,1300.0,0.00043835,30]
[328240005,1717088975599,1300.0,0.00044383,30]
[328240006,1717088977272,1300.0,0.00044931,30]
[328240007,1717088979792,700.0,0.00045479,30]
[328240008,1717088981795,216.33610311,0.00041369,30]
[328240009,1717088984536,2500.0,0.00045,120]
[328240010,1717088987173,888.07529785,0.000389,30]
[328240014,1717089003772,351.09530303,0.00041369,30]
[328240015,1717089004512,2500.0,0.00045,120]
[328240016,1717089009192,888.07529785,0.000389,30]
[328240017,1717089019666,269.7,0.00041838,30]
[328240018,1717089019757,269.7,0.00041161,30]
[328240019,1717089024515,2500.0,0.00045,120]
[328240020,1717089025176,173.17573365,0.000389,30]
[328240031,1717089033037,-743.87118997,0.0001386,2]
[328240034,1717089033055,-2256.12881003,0.0001386,2]
[328240035,1717089033066,-36211.31065341,0.00014,2]
[328240036,1717089033088,-42666.52537729,0.00014,2]
[328240037,1717089033101,-2193.07254094,0.00014,2]
[328240038,1717089033112,-861.87782854,0.00014,2]
[328240039,1717089033125,-1489679.47410607,0.00014,2]
[328240040,1717089033145,-117928.65017417,0.00014,2]
[328240041,1717089033162,-1195.53907704,0.00014,2]
[328240042,1717089033173,-22975.90868866,0.00014,2]
[328240045,1717089037432,-2183.05553526,0.00014,2]
[328240046,1717089037492,-361840.26932502,0.00014,2]
[328240047,1717089037532,-7984.553841,0.00014,2]
[328240048,1717089037545,-167823.84913287,0.00014,2]
[328240049,1717089037574,-1532.0,0.00014,2]
[328240050,1717089037587,-327.02981091,0.00014,2]
[328240051,1717089037599,-454677.43717459,0.00014,2]
[328240052,1717089037619,-991.4127967,0.00014,2]
[328240053,1717089037631,-2980.93321332,0.00014,2]
[328240054,1717089037771,-6400.00261532,0.00014,2]
[328240055,1717089037833,-421322.73383004,0.00014,2]
[328240122,1717089040061,-386.7847,0.00014,2]
[328240123,1717089040124,-886.96472751,0.00014,2]
[328240124,1717089040177,-991.39823966,0.00014,2]
[328240125,1717089040188,-23617.95504947,0.00014,2]
[328240126,1717089040231,-7059.15225,0.00014,2]
[328240127,1717089040243,-8547.75637316,0.00014,2]
[328240128,1717089040265,-65877.74333308,0.00014,2]
[328240129,1717089040279,-256.89893274,0.00014,2]
[328240130,1717089040290,-987.19092115,0.00014,2]
[328240131,1717089040302,-6479.2731675,0.00014,2]
[328240132,1717089040314,-8895.15,0.00014,2]
[328240133,1717089040326,-952.83386468,0.00014,2]
[328240134,1717089040339,-280.62050714,0.00014,2]
[328240135,1717089040351,-35223.6304584,0.00014,2]
[328240136,1717089040362,-30794.58346076,0.00014,2]
[328240137,1717089040952,-154278.87285485,0.00014,2]
[328240146,1717089042880,-2017.76258877,0.00014,2]
[328240147,1717089042891,-2584.49690392,0.00014,2]
[328240148,1717089042946,-209016.50999942,0.00014,2]
[328240150,1717089043545,-1026861.12079312,0.00014,2]
[328240151,1717089043556,-10000.0,0.00014,2]
[328240152,1717089043643,-84753.34974246,0.00014,2]
[328240153,1717089043667,-1438.8239,0.00014,2]
[328240154,1717089043678,-500.0,0.00014,2]
[328240155,1717089043689,-2340.0,0.00014,2]
[328240157,1717089045548,-3693.74843727,0.00014,2]
[328240158,1717089045657,-201270.45111645,0.00014,2]
[328240159,1717089045680,-11631.06070064,0.00014,2]
[328240160,1717089045740,-5601.29375481,0.00014,2]
[328240161,1717089046139,-1654.000128,0.00014,2]
[328240166,1717089084428,-1617.75,0.00014,2]
[328240167,1717089084439,-140930.36263273,0.00014,2]
[328240168,1717089084463,-107806.50322441,0.00014,2]
[328240169,1717089084528,2500.0,0.00045,120]
[328240170,1717089084692,2687.31762,0.00046575,33]
[328240172,1717089092048,424.91,0.00046575,30]
[328240173,1717089093266,3000.0,0.00046575,33]
[328240175,1717089103505,3000.0,0.00046575,33]
[328240176,1717089104531,2500.0,0.00045,120]
[328240179,1717089124541,2500.0,0.00045,120]
[328240182,1717089137236,166.66666666,0.00045146,30]
[328240183,1717089137265,166.66666667,0.00045163,30]
[328240184,1717089137349,160.6944134,0.00045389,30]
[328240185,1717089138869,155.6088353,0.00040526,30]
[328240186,1717089138922,157.02820474,0.00041467,30]
[328240187,1717089139018,155.6088353,0.00041532,30]
[328240188,1717089139883,157.02820474,0.00043272,30]
[328240189,1717089140411,157.02820474,0.00043365,30]
[328240190,1717089140941,157.02820474,0.0004508,30]
[328240191,1717089141389,152.9226701,0.00046553,30]
[328240192,1717089141459,157.02820474,0.0004557,30]
[328240193,1717089141995,166.66666668,0.00040366,30]
[328240194,1717089142992,162.60011051,0.00042494,30]
[328240195,1717089143342,168.92915916,0.00041244,30]
[328240196,1717089143416,155.03733759,0.00040501,30]
[328240197,1717089143450,150.0,0.0004509,30]
[328240198,1717089143479,162.60011051,0.00043647,30]
[328240199,1717089143612,166.49966667,0.00040124,30]
[328240200,1717089143946,155.03733759,0.00042455,30]
[328240201,1717089143984,162.60011055,0.00044836,30]
[328240202,1717089144089,166.49966668,0.00045104,30]
[328240203,1717089144436,155.03733759,0.00042594,30]
[328240204,1717089146533,2500.0,0.00045,120]
[328240205,1717089147472,183.1320531,0.000405,30]
[328240206,1717089147963,153.80301276,0.00044806,30]
[328240207,1717089148042,183.1320531,0.00040506,30]
[328240208,1717089148078,154.04715798,0.00041639,30]
[328240209,1717089148196,154.55028085,0.00040372,30]
[328240210,1717089148517,183.1320531,0.0004057,30]
[328240211,1717089148570,154.04715798,0.00045021,30]
[328240212,1717089148881,154.55028085,0.0004311,30]
[328240213,1717089149329,154.55028085,0.00043788,30]
[328240214,1717089149404,421.78678459,0.00040509,30]
[328240215,1717089149466,153.64069885,0.00041969,30]
[328240216,1717089149570,183.1320531,0.00041048,30]
[328240217,1717089149799,164.3233478,0.00042294,30]
[328240218,1717089149827,157.94374797,0.00042949,30]
[328240219,1717089149894,421.78678459,0.00041395,30]
[328240220,1717089149948,153.64069885,0.00042367,30]
[328240221,1717089150100,183.1320531,0.00042306,30]
[328240222,1717089150389,154.55028085,0.00045268,30]
[328240223,1717089150509,164.39671985,0.00045907,30]
[328240224,1717089150587,183.1320531,0.00042362,30]
[328240225,1717089150939,421.78678459,0.00041414,30]
[328240226,1717089150974,153.64069893,0.00044201,30]
[328240227,1717089151109,183.1320531,0.00042578,30]
[328240228,1717089151146,170.58240986,0.00040799,30]
[328240229,1717089151242,151.74403953,0.00041275,30]
[328240230,1717089151451,154.55028085,0.00045447,30]
[328240231,1717089151481,421.78678459,0.00042001,30]
[328240232,1717089151643,183.1320531,0.00042623,30]
[328240233,1717089151751,151.74403953,0.00042087,30]
[328240234,1717089151939,154.55028091,0.00046421,30]
[328240235,1717089152176,183.1320531,0.00043304,30]
[328240236,1717089152304,151.74403953,0.00042574,30]
[328240237,1717089152342,155.53110848,0.00040579,30]
[328240238,1717089152510,421.78678459,0.00042531,30]
[328240239,1717089152701,183.1320531,0.00044182,30]
[328240240,1717089152782,151.74403953,0.0004273,30]
[328240242,1717089152996,421.78678459,0.00043377,30]
[328240243,1717089153240,183.1320531,0.00044295,30]
[328240244,1717089153365,155.67509434,0.00040572,30]
[328240245,1717089153395,155.53110848,0.00041538,30]
[328240246,1717089153424,151.74403953,0.00044141,30]
[328240247,1717089153510,421.78678459,0.00044237,30]
[328240248,1717089153754,183.1320531,0.0004439,30]
[328240249,1717089153869,155.67509434,0.00041967,30]
[328240250,1717089153904,155.53110848,0.00042355,30]
[328240251,1717089153939,151.74403953,0.00044866,30]
[328240252,1717089154035,421.78678459,0.00045818,30]
[328240253,1717089154422,151.74403953,0.00045663,30]
[328240254,1717089154455,155.67509434,0.000422,30]
[328240255,1717089154571,421.78678459,0.00046044,30]
[328240256,1717089154656,183.1320531,0.00045706,30]
[328240257,1717089154929,155.53110848,0.00042839,30]
[328240258,1717089154963,151.74403957,0.00046248,30]
[328240259,1717089154994,155.67509434,0.00042526,30]
[328240260,1717089155089,421.78678459,0.00046204,30]
[328240261,1717089155166,183.1320531,0.0004596,30]
[328240262,1717089155478,155.67509434,0.00043283,30]
[328240263,1717089155607,421.78678459,0.00046273,30]
[328240264,1717089156173,155.67509434,0.00043748,30]
[328240265,1717089156591,155.67509434,0.0004461,30]
[328240266,1717089156649,421.78678459,0.00046465,30]
[328240267,1717089156990,155.67509434,0.00044779,30]
[328240268,1717089157135,421.78678469,0.00046468,30]
[328240269,1717089157501,155.67509434,0.00044896,30]
[328240270,1717089158526,155.67509446,0.00046236,30]
[328240271,1717089163296,169.8375624,0.00040033,30]
[328240272,1717089163836,169.8375624,0.00040141,30]
[328240273,1717089164357,169.8375624,0.00040713,30]
[328240274,1717089164545,2500.0,0.00045,120]
[328240275,1717089165442,169.8375624,0.00040892,30]
[328240277,1717089166488,169.8375624,0.00041256,30]
[328240278,1717089166975,169.8375624,0.0004138,30]
[328240279,1717089167494,169.8375624,0.00042259,30]
[328240281,1717089167967,169.8375624,0.00042607,30]
[328240282,1717089168479,169.8375624,0.00042767,30]
[328240284,1717089168969,169.8375624,0.00042877,30]
[328240285,1717089169486,169.8375624,0.00043385,30]
[328240286,1717089169967,169.8375624,0.00043744,30]
[328240287,1717089170410,1239.43135,0.00046575,33]
[328240288,1717089170486,169.83756252,0.00044282,30]
[328240289,1717089180539,2500.0,0.00045,120]
[328240292,1717089192398,22857.2272763,0.00045671,120]
[328240293,1717089196452,1067.991724,0.00045327,120]
[328240294,1717089198460,723.393371,0.00044,44]
[328240296,1717089202544,2170.21644957,0.00045,120]
[328240298,1717089213384,2500.0,0.00046575,33]
[328240299,1717089225418,1000.0,0.00046575,30]
[328240300,1717089226562,1000.0,0.00046575,30]
[328240301,1717089227495,1000.0,0.00046575,30]
[328240302,1717089228680,1000.0,0.00046575,30]
[328240303,1717089229337,1000.0,0.00046575,30]
[328240304,1717089229876,664.26708333,0.00045,31]
[328240305,1717089230410,1000.0,0.00046575,30]
[328240306,1717089241162,765.18,0.00046575,30]
[328240307,1717089244291,825881.60976342,0.00046,30]
[328240309,1717089317951,500.0,0.00033917,30]
[328240310,1717089318652,594.36433239,0.00033917,30]
[328240311,1717089320068,500.0,0.00033917,30]
[328240312,1717089320611,500.0,0.00033917,30]
[328240313,1717089321007,165.05152228,0.00033917,30]
[328240314,1717089321546,500.0,0.00033917,30]
[328240315,1717089321872,548.09141935,0.00033917,30]
[328240316,1717089321958,2074.8,0.00033917,30]
[328240317,1717089322237,2074.8,0.00033917,30]
[328240318,1717089322548,2074.8,0.00033917,30]
[328240319,1717089322821,2074.8,0.00033917,30]
[328240320,1717089323154,2074.8,0.00033917,30]
[328240321,1717089323467,2074.8,0.00033917,30]
[328240322,1717089323727,2074.8,0.00033917,30]
[328240323,1717089323910,500.0,0.00033917,30]
[328240324,1717089324175,520.2612016,0.00033917,30]
[328240325,1717089324364,2074.8,0.00033917,30]
[328240326,1717089324663,500.0,0.00033917,30]
[328240327,1717089324698,2074.8,0.00033917,30]
[328240328,1717089324961,2074.8,0.00033917,30]
[328240329,1717089325238,2074.8,0.00033917,30]
[328240330,1717089325518,2074.8,0.00033917,30]
[328240331,1717089325802,2074.8,0.00033917,30]
[328240332,1717089326068,2074.8,0.00033917,30]
[328240333,1717089326342,2074.8,0.00033917,30]
[328240334,1717089326616,2074.8,0.00033917,30]
[328240335,1717089326897,2074.8,0.00033917,30]
[328240336,1717089327229,2074.8,0.00033917,30]
[328240337,1717089327438,2074.8,0.00033917,30]
[328240338,1717089327702,2074.8,0.00033917,30]
[328240339,1717089327755,1340.79,0.00033917,30]
[328240340,1717089327961,2074.8,0.00033917,30]
[328240341,1717089328049,1340.79,0.00033917,30]
[328240342,1717089328234,2074.8,0.00033917,30]
[328240343,1717089328324,1340.79,0.00033917,30]
[328240344,1717089328520,2074.8,0.00033917,30]
[328240345,1717089328633,1340.79,0.00033917,30]
[328240346,1717089328817,2074.97642884,0.00033917,30]
[328240347,1717089328915,1340.79,0.00033917,30]
[328240348,1717089329127,500.0,0.00033917,30]
[328240349,1717089329166,1340.79,0.00033917,30]
[328240350,1717089329425,500.0,0.00033917,30]
[328240351,1717089329455,1340.79,0.00033917,30]
[328240352,1717089329680,500.0,0.00033917,30]
[328240353,1717089329713,1340.79,0.00033917,30]
[328240354,1717089330008,1340.79,0.00033917,30]
[328240355,1717089330272,1340.79,0.00033917,30]
[328240356,1717089330522,1340.79,0.00033917,30]
[328240357,1717089330828,1340.79,0.00033917,30]
[328240358,1717089331073,500.0,0.00033917,30]
[328240359,1717089331267,1340.79,0.00033917,30]
[328240360,1717089331343,1340.79,0.00033917,30]
[328240361,1717089331667,1340.79,0.00033917,30]
[328240362,1717089331703,1427.82,0.00033917,30]
[328240363,1717089331942,1340.79,0.00033917,30]
[328240364,1717089331972,500.0,0.00033917,30]
[328240365,1717089332002,1427.82,0.00033917,30]
[328240366,1717089332220,1340.79,0.00033917,30]
[328240367,1717089332274,1427.82,0.00033917,30]
[328240368,1717089332474,1340.79,0.00033917,30]
[328240369,1717089332553,1427.82,0.00033917,30]
[328240370,1717089332603,500.0,0.00033917,30]
[328240371,1717089332863,1427.82,0.00033917,30]
[328240372,1717089332898,500.0,0.00033917,30]
[328240373,1717089333069,1340.79,0.00033917,30]
[328240374,1717089333194,500.0,0.00033917,30]
[328240375,1717089333347,1340.79,0.00033917,30]
[328240376,1717089333466,1427.82,0.00033917,30]
[328240377,1717089333502,500.0,0.00033917,30]
[328240378,1717089333534,500.0,0.00033917,30]
[328240379,1717089333619,1340.79,0.00033917,30]
[328240380,1717089333760,500.0,0.00033917,30]
[328240381,1717089333793,1427.82,0.00033917,30]
[328240382,1717089333881,1340.79,0.00033917,30]
[328240383,1717089333932,504.818824,0.00033917,30]
[328240384,1717089334041,500.0,0.00033917,30]
[328240385,1717089334072,1427.82,0.00033917,30]
[328240386,1717089334137,1340.79,0.00033917,30]
[328240387,1717089334310,162.23,0.00033917,30]
[328240388,1717089334345,1427.82,0.00033917,30]
[328240389,1717089334426,1340.98366152,0.00033917,30]
[328240390,1717089334588,1427.82,0.00033917,30]
[328240391,1717089334818,500.0,0.00033917,30]
[328240392,1717089334868,1427.82,0.00033917,30]
[328240393,1717089335099,500.0,0.00033917,30]
[328240394,1717089335133,1427.82,0.00033917,30]
[328240395,1717089335350,500.0,0.00033917,30]
[328240396,1717089335636,500.0,0.00033917,30]
[328240397,1717089335673,500.0,0.00033917,30]
[328240398,1717089335750,1427.82,0.00033917,30]
[328240399,1717089335906,312.4584365,0.00033917,30]
[328240400,1717089335939,500.0,0.00033917,30]
[328240401,1717089336190,500.0,0.00033917,30]
[328240402,1717089336441,501.87,0.00033917,30]
[328240403,1717089336473,1427.82,0.00033917,30]
[328240404,1717089336638,500.0,0.00033917,30]
[328240405,1717089336759,1427.82,0.00033917,30]
[328240406,1717089336926,500.0,0.00033917,30]
[328240407,1717089337025,1427.82,0.00033917,30]
[328240408,1717089337227,500.0,0.00033917,30]
[328240409,1717089337303,1427.82,0.00033917,30]
[328240410,1717089337583,1427.82,0.00033917,30]
[328240411,1717089337848,1427.82,0.00033917,30]
[328240412,1717089338171,1427.82,0.00033917,30]
[328240413,1717089338559,1427.82,0.00033917,30]
[328240414,1717089338826,1427.82,0.00033917,30]
[328240415,1717089339119,1427.82,0.00033917,30]
[328240416,1717089339178,500.0,0.00033917,30]
[328240417,1717089339385,1427.90441454,0.00033917,30]
[328240418,1717089339457,500.0,0.00033917,30]
[328240419,1717089339556,500.0,0.00033917,30]
[328240420,1717089339757,500.0,0.00033917,30]
[328240421,1717089340016,500.0,0.00033917,30]
[328240422,1717089341118,500.0,0.00033917,30]
[328240423,1717089341552,412.24,0.00033917,30]
[328240424,1717089341887,500.0,0.00033917,30]
[328240425,1717089342164,500.0,0.00033917,30]
[328240426,1717089342203,424.73871268,0.00033917,30]
[328240427,1717089342401,3142.32,0.00033917,30]
[328240428,1717089342440,500.0,0.00033917,30]
[328240429,1717089342723,264.09452131,0.00033917,30]
[328240430,1717089342891,3142.32,0.00033917,30]
[328240431,1717089343245,3142.32,0.00033917,30]
[328240432,1717089343278,500.0,0.00033917,30]
[328240433,1717089343310,500.0,0.00033917,30]
[328240434,1717089343548,500.0,0.00033917,30]
[328240435,1717089343581,500.0,0.00033917,30]
[328240436,1717089343614,3142.32,0.00033917,30]
[328240437,1717089343823,500.0,0.00033917,30]
[328240438,1717089343857,500.0,0.00033917,30]
[328240439,1717089343893,500.0,0.00033917,30]
[328240440,1717089343950,3142.32,0.00033917,30]
[328240441,1717089344067,500.0,0.00033917,30]
[328240442,1717089344139,639.9246142,0.00033917,30]
[328240443,1717089344175,500.0,0.00033917,30]
[328240444,1717089344224,3142.32,0.00033917,30]
[328240445,1717089344411,500.0,0.00033917,30]
[328240446,1717089344502,3142.32,0.00033917,30]
[328240447,1717089345384,500.0,0.00033917,30]
[328240448,1717089345425,3142.32,0.00033917,30]
[328240449,1717089345677,3142.32,0.00033917,30]
[328240450,1717089346150,3142.32,0.00033917,30]
[328240451,1717089346183,500.0,0.00033917,30]
[328240452,1717089346215,500.0,0.00033917,30]
[328240453,1717089346247,451.29989768,0.00033917,30]
[328240454,1717089346417,3142.32,0.00033917,30]
[328240455,1717089346449,500.0,0.00033917,30]
[328240456,1717089346480,588.2613472,0.00033917,30]
[328240457,1717089346697,500.0,0.00033917,30]
[328240458,1717089346729,3142.32,0.00033917,30]
[328240459,1717089346947,500.0,0.00033917,30]
[328240460,1717089346978,3142.32,0.00033917,30]
[328240461,1717089347212,500.0,0.00033917,30]
[328240462,1717089347500,315.11,0.00033917,30]
[328240463,1717089347838,3142.32,0.00033917,30]
[328240464,1717089348027,508.68446954,0.00033917,30]
[328240465,1717089348130,3142.32,0.00033917,30]
[328240466,1717089348306,514.45,0.00033917,30]
[328240467,1717089348576,514.45,0.00033917,30]
[328240468,1717089348671,512.03715541,0.00033917,30]
[328240469,1717089348731,3142.32,0.00033917,30]
[328240470,1717089348856,514.45,0.00033917,30]
[328240471,1717089348958,500.0,0.00033917,30]
[328240472,1717089349054,3142.32,0.00033917,30]
[328240473,1717089349211,514.45,0.00033917,30]
[328240474,1717089349527,519.51539887,0.00033917,30]
[328240475,1717089349577,3142.32,0.00033917,30]
[328240476,1717089349661,3142.32,0.00033917,30]
[328240477,1717089349697,514.45,0.00033917,30]
[328240478,1717089349920,3142.32,0.00033917,30]
[328240479,1717089349959,514.45,0.00033917,30]
[328240480,1717089350108,500.0,0.00033917,30]
[328240481,1717089350204,3142.32,0.00033917,30]
[328240482,1717089350259,514.45,0.00033917,30]
[328240483,1717089350404,500.0,0.00033917,30]
[328240484,1717089350457,3142.32,0.00033917,30]
[328240485,1717089350508,500.0,0.00033917,30]
[328240486,1717089350731,3142.32,0.00033917,30]
[328240487,1717089350779,500.0,0.00033917,30]
[328240488,1717089350810,514.45,0.00033917,30]
[328240489,1717089350994,3142.38,0.00033917,30]
[328240490,1717089351036,500.0,0.00033917,30]
[328240491,1717089351068,514.45,0.00033917,30]
[328240492,1717089351105,425.12768991,0.00033917,30]
[328240493,1717089351351,514.45,0.00033917,30]
[328240494,1717089351384,500.0,0.00033917,30]
[328240495,1717089351760,539.59,0.00033917,30]
[328240496,1717089351820,514.45,0.00033917,30]
[328240497,1717089351905,514.45,0.00033917,30]
[328240498,1717089352255,514.45,0.00033917,30]
[328240499,1717089352519,514.45,0.00033917,30]
[328240500,1717089352802,514.45,0.00033917,30]
[328240501,1717089353201,500.0,0.00033917,30]
[328240502,1717089353428,514.45,0.00033917,30]
[328240503,1717089353458,595.04989123,0.00033917,30]
[328240504,1717089353708,500.0,0.00033917,30]
[328240505,1717089353738,514.45,0.00033917,30]
[328240506,1717089353940,500.0,0.00033917,30]
[328240507,1717089353997,514.45,0.00033917,30]
[328240508,1717089354281,514.45,0.00033917,30]
[328240509,1717089354569,500.0,0.00033917,30]
[328240510,1717089354601,514.45,0.00033917,30]
[328240511,1717089354813,514.45,0.00033917,30]
[328240512,1717089354845,500.0,0.00033917,30]
[328240513,1717089355111,514.45,0.00033917,30]
[328240514,1717089355143,500.0,0.00033917,30]
[328240515,1717089355389,514.45,0.00033917,30]
[328240516,1717089355681,514.62446804,0.00033917,30]
[328240517,1717089355737,500.0,0.00033917,30]
[328240518,1717089356024,500.0,0.00033917,30]
[328240519,1717089356202,509.06451775,0.00033917,30]
[328240520,1717089356281,500.0,0.00033917,30]
[328240521,1717089356633,500.0,0.00033917,30]
[328240522,1717089356950,500.0,0.00033917,30]
[328240523,1717089357226,500.0,0.00033917,30]
[328240524,1717089357535,500.0,0.00033917,30]
[328240525,1717089357842,500.0,0.00033917,30]
[328240526,1717089357872,500.0,0.00033917,30]
[328240527,1717089358168,500.0,0.00033917,30]
[328240528,1717089358200,500.0,0.00033917,30]
[328240529,1717089358466,500.0,0.00033917,30]
[328240530,1717089358496,500.0,0.00033917,30]
[328240531,1717089358733,500.0,0.00033917,30]
[328240532,1717089358792,500.0,0.00033917,30]
[328240533,1717089359007,500.0,0.00033917,30]
[328240534,1717089359180,500.0,0.00033917,30]
[328240535,1717089359255,500.0,0.00033917,30]
[328240536,1717089359290,500.0,0.00033917,30]
[328240537,1717089359499,500.0,0.00033917,30]
[328240538,1717089359531,500.0,0.00033917,30]
[328240539,1717089359568,500.0,0.00033917,30]
[328240540,1717089359799,500.0,0.00033917,30]
[328240541,1717089359831,500.0,0.00033917,30]
[328240542,1717089359861,500.0,0.00033917,30]
[328240543,1717089360098,500.0,0.00033917,30]
[328240544,1717089360355,500.0,0.00033917,30]
[328240545,1717089360386,299.94308282,0.00033917,30]
[328240546,1717089360422,500.0,0.00033917,30]
[328240547,1717089360685,500.0,0.00033917,30]
[328240548,1717089360722,571.07748278,0.00033917,30]
[328240549,1717089360964,500.0,0.00033917,30]
[328240550,1717089361260,500.0,0.00033917,30]
[328240551,1717089361639,500.0,0.00033917,30]
[328240552,1717089362010,500.0,0.00033917,30]
[328240553,1717089362323,180.66520926,0.00033917,30]
[328240554,1717089363137,500.0,0.00033917,30]
[328240555,1717089363528,500.0,0.00033917,30]
[328240556,1717089363614,500.0,0.00033917,30]
[328240557,1717089363690,500.0,0.00033917,30]
[328240558,1717089363897,500.0,0.00033917,30]
[328240559,1717089363998,500.0,0.00033917,30]
[328240560,1717089364429,500.0,0.00033917,30]
[328240561,1717089364547,550.72922643,0.00033917,30]
[328240562,1717089364741,500.0,0.00033917,30]
[328240563,1717089365044,500.0,0.00033917,30]
[328240564,1717089365410,500.0,0.00033917,30]
[328240565,1717089366034,500.0,0.00033917,30]
[328240566,1717089366343,500.0,0.00033917,30]
[328240567,1717089366605,500.0,0.00033917,30]
[328240568,1717089366668,500.0,0.00033917,30]
[328240569,1717089366951,500.0,0.00033917,30]
[328240570,1717089366985,601.27817518,0.00033917,30]
[328240571,1717089367017,500.0,0.00033917,30]
[328240572,1717089367241,500.0,0.00033917,30]
[328240573,1717089367276,500.0,0.00033917,30]
[328240574,1717089367532,500.0,0.00033917,30]
[328240575,1717089367576,174.66,0.00033917,30]
[328240576,1717089368055,500.0,0.00033917,30]
[328240577,1717089368087,500.0,0.00033917,30]
[328240578,1717089368138,500.0,0.00033917,30]
[328240579,1717089368321,500.0,0.00033917,30]
[328240580,1717089368550,500.0,0.00033917,30]
[328240581,1717089368616,500.0,0.00033917,30]
[328240582,1717089368727,500.0,0.00033917,30]
[328240583,1717089368817,500.0,0.00033917,30]
[328240584,1717089368916,500.0,0.00033917,30]
[328240585,1717089369044,500.0,0.00033917,30]
[328240586,1717089369079,500.0,0.00033917,30]
[328240587,1717089369230,500.0,0.00033917,30]
[328240588,1717089369332,500.0,0.00033917,30]
[328240589,1717089369432,500.0,0.00033917,30]
[328240590,1717089369467,500.0,0.00033917,30]
[328240591,1717089369497,500.0,0.00033917,30]
[328240592,1717089369529,500.0,0.00033917,30]
[328240593,1717089369593,555.74,0.00033917,30]
[328240594,1717089369623,500.0,0.00033917,30]
[328240595,1717089369653,500.0,0.00033917,30]
[328240596,1717089369685,500.0,0.00033917,30]
[328240597,1717089369785,500.0,0.00033917,30]
[328240598,1717089369816,500.0,0.00033917,30]
[328240599,1717089369916,187.24267108,0.00033917,30]
[328240600,1717089369947,500.0,0.00033917,30]
[328240601,1717089370073,154.44,0.00033917,30]
[328240602,1717089370105,506.08256742,0.00033917,30]
[328240603,1717089370223,500.0,0.00033917,30]
[328240604,1717089370517,500.0,0.00033917,30]
[328240605,1717089370837,473.53,0.00033917,30]
[328240606,1717089372289,500.0,0.00033917,30]
[328240607,1717089372481,867.78,0.00033917,30]
[328240608,1717089372557,500.0,0.00033917,30]
[328240609,1717089372703,611.01,0.00033917,30]
[328240610,1717089372791,867.78,0.00033917,30]
[328240611,1717089372971,611.01,0.00033917,30]
[328240612,1717089373041,867.78,0.00033917,30]